fUSD/lending_fUSD_20240814
["ID","MTS","AMOUNT","RATE_DAILY","PERIOD"]
[334888500,1723626697616,-150.0,0.0001955,4]
[334888501,1723626697626,-1041.0,0.00019564,2]
[334888502,1723626697635,-150.0,0.00019584,4]
[334888503,1723626697645,-496.23385394,0.00019597,2]
[334888504,1723626697655,-150.0,0.00019608,4]
[334888505,1723626697664,-150.0,0.00019618,4]
[334888506,1723626697674,-1000.0,0.00019624,2]
[334888507,1723626697683,-1000.0,0.00019624,2]
[334888508,1723626697693,-150.0,0.00019685,4]
[334888509,1723626697702,-372.4005433,0.00019713,2]
[334888510,1723626697711,-1500.86,0.00019726,2]
[334888511,1723626697720,-1105.99,0.00019726,2]
[334888512,1723626697730,-154.515367,0.00019726,2]
[334888513,1723626697741,-601.4,0.00019726,2]
[334888514,1723626697751,-849.17,0.00019726,2]
[334888515,1723626697760,-594.09462211,0.00019726,2]
[334888516,1723626697770,-512.44,0.00019726,2]
[334888517,1723626697779,-500.0,0.00019726,2]
[334888518,1723626697789,-678.29,0.00019726,2]
[334888519,1723626697798,-511.38,0.00019726,2]
[334888520,1723626697808,-1974.32,0.00019726,2]
[334888521,1723626697817,-226.61,0.00019726,2]
[334888522,1723626697827,-500.0,0.00019726,2]
[334888523,1723626697836,-591.86,0.00019726,2]
[334888524,1723626697846,-666.36,0.00019726,2]
[334888525,1723626697855,-554.42,0.00019726,2]
[334888526,1723626697864,-573.31,0.00019726,2]
[334888527,1723626697874,-783.31,0.00019726,2]
[334888528,1723626697883,-520.19,0.00019726,2]
[334888529,1723626697893,-922.73,0.00019726,2]
[334888530,1723626697903,-830.91,0.00019726,2]
[334888531,1723626697912,-433.36240116,0.00019726,2]
[334888532,1723626697922,-690.05,0.00019726,2]
[334888533,1723626697931,-254.14405257,0.00019726,2]
[334888534,1723626698080,-818.44,0.00019726,2]
[334888535,1723626698090,-500.0,0.00019726,2]
[334888536,1723626698099,-542.84,0.00019726,2]
[334888537,1723626698109,-609.17,0.00019726,2]
[334888538,1723626698121,-579.6,0.00019726,2]
[334888539,1723626698131,-653.02,0.00019726,2]
[334888540,1723626698140,-2177.45,0.00019726,2]
[334888541,1723626698150,-1063.82,0.00019726,2]
[334888542,1723626698159,-845.57,0.00019726,2]
[334888543,1723626698168,-1527.58,0.00019726,2]
[334888544,1723626698178,-676.31,0.00019726,2]
[334888545,1723626698187,-1715.7,0.00019726,2]
[334888546,1723626698196,-754.95,0.00019726,2]
[334888547,1723626698206,-972.03,0.00019726,2]
[334888548,1723626698216,-524.53,0.00019726,2]
[334888549,1723626698225,-770.2,0.00019726,2]
[334888550,1723626698236,-2373.49,0.00019726,2]
[334888551,1723626698245,-608.38,0.00019726,2]
[334888552,1723626698255,-562.69,0.00019726,2]
[334888553,1723626698264,-644.93,0.00019726,2]
[334888554,1723626698274,-6691.92,0.00019726,2]
[334888555,1723626698284,-2731.88,0.00019726,2]
[334888556,1723626698294,-2589.64,0.00019726,2]
[334888557,1723626698303,-552.38,0.00019726,2]
[334888558,1723626698312,-2632.4,0.00019726,2]
[334888559,1723626698322,-1402.43,0.00019726,2]
[334888560,1723626698331,-2123.25,0.00019726,2]
[334888561,1723626698341,-670.79,0.00019726,2]
[334888562,1723626698350,-759.51,0.00019726,2]
[334888563,1723626698360,-985.93,0.00019726,2]
[334888564,1723626698370,-3137.69,0.00019726,2]
[334888565,1723626698379,-1305.48,0.00019726,2]
[334888566,1723626698389,-644.37,0.00019726,2]
[334888567,1723626698399,-1305.6,0.00019726,2]
[334888568,1723626698408,-536.79,0.00019726,2]
[334888569,1723626698417,-983.66,0.00019726,2]
[334888570,1723626698426,-500.0,0.00019726,2]
[334888571,1723626698442,-170.75908626,0.00019726,2]
[334888572,1723626698453,-677.53,0.00019726,2]
[334888573,1723626698463,-2121.13,0.00019726,2]
[334888574,1723626698473,-638.37,0.00019726,2]
[334888575,1723626698483,-759.39,0.00019726,2]
[334888576,1723626698493,-1352.79,0.00019726,2]
[334888577,1723626698503,-794.59,0.00019726,2]
[334888578,1723626698514,-849.35,0.00019726,2]
[334888579,1723626698528,-655.62,0.00019726,2]
[334888580,1723626698537,-1159.21,0.00019726,2]
[334888581,1723626698547,-733.33,0.00019726,2]
[334888582,1723626698556,-562.63,0.00019726,2]
[334888583,1723626698566,-1460.87,0.00019726,2]
[334888584,1723626698575,-996.55,0.00019726,2]
[334888585,1723626698585,-1258.81,0.00019726,2]
[334888586,1723626698595,-682.77,0.00019726,2]
[334888587,1723626698604,-725.26,0.00019726,2]
[334888588,1723626698614,-796.91,0.00019726,2]
[334888589,1723626698623,-678.33,0.00019726,2]
[334888590,1723626698633,-604.11,0.00019726,2]
[334888591,1723626698642,-1036.99,0.00019726,2]
[334888592,1723626698652,-684.51,0.00019726,2]
[334888593,1723626698661,-2400.86,0.00019726,2]
[334888594,1723626698671,-1157.66,0.00019726,2]
[334888595,1723626698680,-2787.1,0.00019726,2]
[334888596,1723626698691,-500.0,0.00019726,2]
[334888597,1723626698701,-1126.69,0.00019726,2]
[334888598,1723626698711,-1607.6,0.00019726,2]
[334888599,1723626698720,-780.32,0.00019726,2]
[334888600,1723626698730,-544.62,0.00019726,2]
[334888601,1723626698740,-507.47,0.00019726,2]
[334888602,1723626698749,-3758.29,0.00019726,2]
[334888603,1723626698759,-1854.98,0.00019726,2]
[334888604,1723626698768,-642.83,0.00019726,2]
[334888605,1723626698778,-556.33,0.00019726,2]
[334888606,1723626698788,-659.96,0.00019726,2]
[334888607,1723626698797,-635.37,0.00019726,2]
[334888608,1723626698807,-810.55,0.00019726,2]
[334888609,1723626698816,-439.42403171,0.00019726,2]
[334888610,1723626698826,-734.11,0.00019726,2]
[334888611,1723626698835,-1023.98,0.00019726,2]
[334888612,1723626698845,-893.45,0.00019726,2]
[334888613,1723626698854,-2346.66,0.00019726,2]
[334888614,1723626698864,-7848.21,0.00019726,2]
[334888615,1723626698874,-687.93,0.00019726,2]
[334888616,1723626698883,-743.2,0.00019726,2]
[334888617,1723626698893,-150.0,0.00019753,4]
[334888618,1723626698903,-150.0,0.00019753,4]
[334888619,1723626698913,-1041.0,0.00019766,2]
[334888620,1723626698923,-13566.2839622,0.00019786,2]
[334888621,1723626698933,-92410.75,0.000198,2]
[334888622,1723626698943,-150.0,0.0001982,4]
[334888623,1723626698953,-4148.7887457,0.00019885,2]
[334888624,1723626698963,-150.0,0.00019888,4]
[334888625,1723626698973,-220.0,0.00019898,10]
[334888626,1723626698983,-6920.13993676,0.00019899,2]
[334888627,1723626698994,-4618.93824343,0.000199,3]
[334888628,1723626699004,-150.0,0.00019922,4]
[334888629,1723626699014,-150.0,0.00019956,4]
[334888630,1723626699023,-1041.0,0.00019967,2]
[334888631,1723626699033,-150.0,0.0001997,4]
[334888632,1723626699042,-17839.65072931,0.0002,2]
[334888633,1723626699052,-1517.90555915,0.0002,7]
[334888634,1723626699062,-6294.99597718,0.0002,2]
[334888635,1723626699072,-155.0,0.0002,2]
[334888636,1723626699082,-1185.00118368,0.0002,2]
[334888637,1723626699091,-470.3904832,0.0002,2]
[334888638,1723626699101,-155.0,0.0002,2]
[334888639,1723626699110,-1285.05011552,0.0002,2]
[334888640,1723626699121,-869.13101619,0.0002,2]
[334888641,1723626699131,-5000.0,0.0002,7]
[334888642,1723626699141,-284.79772859,0.0002,2]
[334888643,1723626699151,-502.0,0.0002,2]
[334888644,1723626699160,-378.00432798,0.0002,30]
[334888645,1723626699170,-500.0,0.0002,2]
[334888646,1723626699180,-18042.522,0.0002,3]
[334888647,1723626699190,-150.0,0.0002,2]
[334888648,1723626699199,-193.0,0.0002,2]
[334888649,1723626699208,-744.86297508,0.0002,2]
[334888650,1723626699218,-300.0,0.0002,14]
[334888651,1723626699227,-20000.0,0.0002,10]
[334888652,1723626699236,-20000.0,0.0002,10]
[334888653,1723626699246,-20000.0,0.0002,10]
[334888654,1723626699256,-20000.0,0.0002,10]
[334888655,1723626699265,-20000.0,0.0002,10]
[334888656,1723626699275,-20000.0,0.0002,10]
[334888657,1723626699284,-17864.69471263,0.0002,10]
[334888658,1723626699294,-1182.72626944,0.0002,4]
[334888659,1723626699303,-200.0,0.0002,2]
[334888660,1723626699313,-186.0,0.0002,2]
[334888661,1723626699322,-1003.0,0.0002,10]
[334888662,1723626699332,-200.0,0.0002,2]
[334888663,1723626699341,-186.0,0.0002,2]
[334888664,1723626699350,-1500.89334723,0.0002,2]
[334888665,1723626699359,-193.0,0.0002,2]
[334888666,1723626699369,-1106.17920539,0.0002,2]
[334888667,1723626699379,-83025.03186837,0.0002,2]
[334888668,1723626699651,-328.47396994,0.0002,2]
[334888669,1723626701320,-151.0,0.000138,2]
[334888670,1723626701330,-151.0,0.000139,2]
[334888671,1723626701340,-1222.19,0.00013972,2]
[334888672,1723626701350,-151.0,0.00013972,2]
[334888673,1723626701360,-500.0,0.00014246,2]
[334888674,1723626701369,-1222.19,0.00014246,2]
[334888675,1723626701379,-251.5725255,0.0001452,2]
[334888676,1723626701419,-248.4274745,0.0001452,2]
[334888677,1723626701430,-500.0,0.0001452,2]
[334888678,1723626701441,-1222.19,0.0001452,2]
[334888679,1723626701451,-500.0,0.00014794,2]
[334888680,1723626701461,-500.0,0.00014794,2]
[334888681,1723626701470,-1222.19,0.00014794,2]
[334888682,1723626701482,-500.0,0.00015068,2]
[334888683,1723626701493,-500.0,0.00015068,2]
[334888684,1723626701502,-1222.19,0.00015068,2]
[334888685,1723626701514,-620.93,0.00015342,2]
[334888686,1723626701524,-500.0,0.00015342,2]
[334888687,1723626701533,-1222.19,0.00015342,2]
[334888688,1723626701543,-500.0,0.00015616,2]
[334888689,1723626701552,-1222.19,0.00015616,2]
[334888690,1723626701562,-1367.0,0.000157,2]
[334888691,1723626701572,-500.0,0.0001589,2]
[334888692,1723626701582,-1222.19,0.0001589,2]
[334888693,1723626701592,-500.0,0.00016164,2]
[334888694,1723626701602,-1222.19,0.00016164,2]
[334888695,1723626701613,-500.0,0.00016438,2]
[334888696,1723626701623,-1222.19,0.00016438,2]
[334888697,1723626701633,-500.0,0.00016712,2]
[334888698,1723626701643,-500.0,0.00016712,2]
[334888699,1723626701652,-1222.19,0.00016712,2]
[334888700,1723626701662,-975.29,0.00016986,2]
[334888701,1723626701672,-500.0,0.00016986,2]
[334888702,1723626701682,-500.0,0.00016986,2]
[334888703,1723626701693,-975.29,0.0001726,2]
[334888704,1723626701702,-438.18639825,0.0001726,2]
[334888705,1723626701712,-500.0,0.0001726,2]
[334888706,1723626701722,-975.29,0.00017534,2]
[334888707,1723626701732,-500.0,0.00017534,2]
[334888708,1723626701743,-975.29,0.00017808,2]
[334888709,1723626701753,-500.0,0.00017808,2]
[334888710,1723626701763,-975.29,0.00018082,2]
[334888711,1723626701773,-500.0,0.00018082,2]
[334888712,1723626701784,-975.29,0.00018356,2]
[334888713,1723626701793,-500.0,0.00018356,2]
[334888714,1723626701803,-975.29,0.0001863,2]
[334888715,1723626701813,-500.0,0.0001863,2]
[334888716,1723626701824,-975.29,0.00018904,2]
[334888717,1723626701834,-975.29,0.00019178,2]
[334888718,1723626701844,-975.29,0.00019452,2]
[334888719,1723626701854,-975.29,0.00019726,2]
[334888720,1723626701863,-68165.34903046,0.0002,2]
[334888721,1723626703628,-606.2328,0.00012722,2]
[334888722,1723626704495,-606.2328,0.00012722,2]
[334888723,1723626704977,-300.0,0.00012721,2]
[334888724,1723626705359,300.0,0.00011832,2]
[334888725,1723626705524,-24.809,0.00011832,2]
[334888757,1723627090149,-155.0,9.999e-05,2]
[334888758,1723627096217,-414.35874539,0.0001,2]
[334888799,1723627832161,-135.64125461,0.0001,2]
[334888800,1723627832170,-960.53686819,0.0001055,2]
[334888801,1723627832180,-616.14,0.0001065,2]
[334888802,1723627832189,-960.53686818,0.00010674,2]
[334888803,1723627832199,-960.53686818,0.00010798,2]
[334888804,1723627832208,-300.0,0.00010898,2]
[334888805,1723627832218,-300.0,0.00010898,2]
[334888806,1723627832228,-300.0,0.000109,2]
[334888807,1723627832237,-857.92633616,0.000109,2]
[334888808,1723627832246,-171.22804541,0.000109,2]
[334888809,1723627832256,-165.41128466,0.000109,2]
[334888810,1723627832443,-1341.70866144,0.000109,2]
[334888811,1723627832452,-151.82,0.0001099,2]
[334888812,1723627832462,-151.82,0.0001099,2]
[334888813,1723627832471,-151.82,0.0001099,2]
[334888815,1723627832481,-151.82,0.0001099,2]
[334888817,1723627832490,-151.82,0.0001099,2]
[334888819,1723627832500,-151.82,0.0001099,2]
[334888821,1723627832509,-151.82,0.0001099,2]
[334888823,1723627832519,-151.82,0.0001099,2]
[334888824,1723627832528,-151.82,0.0001099,2]
[334888826,1723627832541,-151.82,0.0001099,2]
[334888827,1723627832556,-151.82,0.0001099,2]
[334888828,1723627832566,-151.82,0.0001099,2]
[334888829,1723627832576,-151.82,0.0001099,2]
[334888830,1723627832585,-151.82,0.0001099,2]
[334888831,1723627832594,-151.82,0.0001099,2]
[334888832,1723627832604,-151.82,0.0001099,2]
[334888834,1723627832614,-151.82,0.0001099,2]
[334888836,1723627832624,-151.82,0.0001099,2]
[334888837,1723627832634,-151.82,0.0001099,2]
[334888838,1723627832643,-151.82,0.0001099,2]
[334888839,1723627832653,-151.82,0.0001099,2]
[334888840,1723627832662,-151.82,0.0001099,2]
[334888841,1723627832672,-151.82,0.0001099,2]
[334888842,1723627832682,-151.82,0.0001099,2]
[334888843,1723627832692,-151.82,0.0001099,2]
[334888844,1723627832701,-151.82,0.0001099,2]
[334888845,1723627832711,-151.82,0.0001099,2]
[334888846,1723627832721,-151.82,0.0001099,2]
[334888847,1723627832730,-151.82,0.0001099,2]
[334888848,1723627832740,-151.82,0.0001099,2]
[334888849,1723627832749,-151.82,0.0001099,2]
[334888850,1723627832759,-151.82,0.0001099,2]
[334888851,1723627832768,-151.82,0.0001099,2]
[334888852,1723627832778,-151.82,0.0001099,2]
[334888853,1723627832788,-151.82,0.0001099,2]
[334888854,1723627832798,-151.82,0.0001099,2]
[334888855,1723627832811,-151.82,0.0001099,2]
[334888856,1723627832820,-151.82,0.0001099,2]
[334888857,1723627832830,-151.82,0.0001099,2]
[334888858,1723627832840,-151.82,0.0001099,2]
[334888859,1723627832849,-151.82,0.0001099,2]
[334888860,1723627832859,-151.82,0.0001099,2]
[334888861,1723627832869,-151.82,0.0001099,2]
[334888862,1723627832879,-151.82,0.0001099,2]
[334888863,1723627832888,-151.82,0.0001099,2]
[334888864,1723627832898,-151.82,0.0001099,2]
[334888865,1723627832907,-151.82,0.0001099,2]
[334888866,1723627832916,-151.82,0.0001099,2]
[334888867,1723627832926,-151.82,0.0001099,2]
[334888868,1723627832937,-151.82,0.0001099,2]
[334888869,1723627832947,-151.82,0.0001099,2]
[334888870,1723627832956,-151.82,0.0001099,2]
[334888871,1723627832965,-151.82,0.0001099,2]
[334888872,1723627832975,-151.82,0.0001099,2]
[334888873,1723627832984,-151.82,0.0001099,2]
[334888874,1723627832994,-151.82,0.0001099,2]
[334888875,1723627833003,-151.82,0.0001099,2]
[334888876,1723627833012,-151.82,0.0001099,2]
[334888877,1723627833022,-151.82,0.0001099,2]
[334888878,1723627833032,-150.0,0.00010999,2]
[334888879,1723627833042,-18885.55099197,0.00011,2]
[334888880,1723627833055,-10713.02602082,0.00011,2]
[334888881,1723627833067,-251.88644517,0.00011,2]
[334888882,1723627833078,-7380.92597692,0.00011,2]
[334888883,1723627833090,-5904.21072517,0.00011,2]
[334888884,1723627833102,-6687.86247158,0.00011,2]
[334888885,1723627833114,-1661.1859856,0.00011,2]
[334888886,1723627833125,-407.73214544,0.00011,2]
[334888887,1723627833136,-261.15578167,0.00011,2]
[334888888,1723627833149,-517.85068696,0.00011,2]
[334888889,1723627833160,-644.14913456,0.00011,2]
[334888890,1723627833173,-297.99594133,0.00011,2]
[334888891,1723627833185,-454.2225082,0.00011,2]
[334888892,1723627833197,-1022.98488966,0.00011,2]
[334888893,1723627833213,-436.64173545,0.00011,2]
[334888894,1723627833224,-312.75876885,0.00011,2]
[334888895,1723627833236,-5272.63100802,0.00011,2]
[334888896,1723627833247,-3675.16069498,0.00011,2]
[334888897,1723627833259,-5438.39379598,0.00011,2]
[334888898,1723627833271,-3256.74546623,0.00011,2]
[334888899,1723627833283,-341.34701288,0.00011,2]
[334888900,1723627833295,-1444.14581354,0.00011,2]
[334888901,1723627833307,-4196.1,0.00011,2]
[334888902,1723627833319,-300.3,0.00011,2]
[334888906,1723627838189,-28722.8141531,0.00011,2]
[334888907,1723627838200,-1173.65274454,0.00011,2]
[334888908,1723627838249,-563.35504497,0.00011,2]
[334888909,1723627838427,-362.60725604,0.00011,2]
[334888910,1723627838438,-426.35735425,0.00011,2]
[334888911,1723627838449,-5655.64646499,0.00011,2]
[334888912,1723627838461,-590.05754824,0.00011,2]
[334888913,1723627838472,-257.82237684,0.00011,2]
[334888914,1723627838492,-6430.39699736,0.00011,2]
[334888915,1723627838503,-1829.12418851,0.00011,2]
[334888916,1723627838562,-7835.364,0.00011,2]
[334888919,1723627838574,-1414.5,0.00011,2]
[334888921,1723627838585,-7544.50302701,0.00011,2]
[334889063,1723627840101,-2844.67368354,0.00011,2]
[334889071,1723627840164,-1275.2531778,0.00011,2]
[334889073,1723627840176,-347.833572,0.00011,2]
[334889075,1723627840187,-587.46169813,0.00011,2]
[334889077,1723627840198,-2025.26791969,0.00011,2]
[334889079,1723627840209,-621.63078751,0.00011,2]
[334889082,1723627840220,-26088.87625134,0.00011,2]
[334889084,1723627840232,-285.63834519,0.00011,2]
[334889093,1723627840307,-1131.59228596,0.00011,2]
[334889095,1723627840318,-665.03,0.00011,2]
[334889097,1723627840330,-730.55933782,0.00011,2]
[334889103,1723627840376,-1404.75547569,0.00011,2]
[334889105,1723627840387,-650.0,0.00011,2]
[334889112,1723627840438,-1259.96086,0.00011,2]
[334889114,1723627840449,-3537.73874138,0.00011,2]
[334889386,1723627843130,-729.32633497,0.00011,2]
[334889388,1723627843141,-302.23,0.00011,2]
[334889390,1723627843152,-300.1,0.00011,2]
[334889392,1723627843163,-307.38558639,0.00011,2]
[334889394,1723627843174,-274.264,0.00011,2]
[334889396,1723627843184,-309.865,0.00011,2]
[334889399,1723627843205,-659.44059965,0.00011,2]
[334889402,1723627843217,-536.28001313,0.00011,2]
[334889404,1723627843229,-30000.0,0.00011,2]
[334889406,1723627843240,-641.85958326,0.00011,2]
[334889409,1723627843257,-1724.6214375,0.00011,2]
[334889411,1723627843269,-25835.9693387,0.00011,2]
[334889413,1723627843280,-392.857998,0.00011,2]
[334889420,1723627843328,-391.22403067,0.00011,2]
[334889422,1723627843339,-77834.40800216,0.00011,2]
[334889536,1723627844447,-5960.15353982,0.00011,2]
[334889721,1723627846274,-270.462826,0.00011,2]
[334889723,1723627846286,-819.48864063,0.00011,2]
[334889736,1723627846393,-23827.44258762,0.00011,2]
[334889738,1723627846404,-358.750893,0.00011,2]
[334889744,1723627846459,-515.25,0.00011,2]
[334889747,1723627846471,-1033.59720923,0.00011,2]
[334889749,1723627846482,-926.66902096,0.00011,2]
[334889755,1723627846538,-700.81814432,0.00011,2]
[334889757,1723627846551,-1221.72,0.00011,2]
[334889760,1723627846563,-456.80005735,0.00011,2]
[334889762,1723627846575,-769.46991087,0.00011,2]
[334889764,1723627846587,-3461.43083766,0.00011,2]
[334889766,1723627846599,-2635.15652636,0.00011,2]
[334889768,1723627846611,-2841.6070666,0.00011,2]
[334889771,1723627846624,-1408.82174182,0.00011,2]
[334889773,1723627846636,-483.66576004,0.00011,2]
[334889775,1723627846648,-690.60504577,0.00011,2]
[334889777,1723627846660,-21240.78298226,0.00011,2]
[334889779,1723627846671,-1432.17907562,0.00011,2]
[334889782,1723627846683,-276.37286599,0.00011,2]
[334889784,1723627846695,-3620.68944261,0.00011,2]
[334889786,1723627846708,-4506.06258621,0.00011,2]
[334890587,1723627855341,-200.0,0.0001,2]
[334891671,1723627876602,-200.0,0.0001,2]
[334891678,1723628529359,150.0,9.539e-05,2]
[334891679,1723628529383,150.0,9.539e-05,2]
[334891680,1723628529405,150.0,9.539e-05,2]
[334891681,1723628529428,150.0,9.539e-05,2]
[334891682,1723628529453,67.62,9.539e-05,2]
[334891683,1723628736090,-150.0,9.888e-05,2]
[334891705,1723628977958,696.48,9.108e-05,2]
[334891709,1723629032413,-550.0,0.0001,2]
[334891710,1723629032423,-529.035374,0.00010835,2]
[334891711,1723629032432,-1940.58555,0.0001089,2]
[334891712,1723629032442,-252.87526575,0.000109,2]
[334891713,1723629032451,-990.50618613,0.000109,2]
[334891714,1723629032460,-319.39033542,0.000109,2]
[334891715,1723629032470,-894.47244096,0.000109,2]
[334891716,1723629032481,-150.0,0.00010959,2]
[334891717,1723629032490,-151.84,0.0001099,2]
[334891719,1723629032500,-300.0,0.00010995,2]
[334891721,1723629032510,-57844.30898207,0.00010996,2]
[334891723,1723629032520,-1442.71250586,0.00010997,2]
[334891725,1723629032530,-418.51079206,0.00010999,2]
[334891727,1723629032540,-135463.67946162,0.00011,2]
[334891728,1723629032552,-388.88750137,0.00011,2]
[334891739,1723629038379,-304.44414,0.00011,2]
[334891740,1723629038462,-1235.02261279,0.00011,2]
[334891741,1723629038685,-575.30635287,0.00011,2]
[334891742,1723629038787,-303.35364713,0.00011,2]
[334891879,1723629040295,-495.55389865,0.00011,2]
[334891886,1723629040359,-107631.72796303,0.00011,2]
[334891888,1723629040371,-42299.52273211,0.00011,2]
[334891890,1723629040381,-18035.6056396,0.00011,2]
[334891892,1723629040392,-1838.79595843,0.00011,2]
[334891895,1723629040404,-1333.31807868,0.00011,2]
[334891898,1723629040433,-617.23,0.00011,2]
[334891905,1723629040497,-805.03007004,0.00011,2]
[334891907,1723629040508,-740.7700275,0.00011,2]
[334891909,1723629040519,-89310.38324286,0.00011,2]
[334891920,1723629040620,-1842.54056392,0.00011,2]
[334892204,1723629043408,-557.84664193,0.00011,2]
[334892206,1723629043419,-660.19,0.00011,2]
[334892208,1723629043431,-2204.45423647,0.00011,2]
[334892210,1723629043442,-1006.62630079,0.00011,2]
[334892212,1723629043453,-352.72799642,0.00011,2]
[334892215,1723629043464,-1401.9999998,0.00011,2]
[334892218,1723629043490,-1175.26064,0.00011,2]
[334892220,1723629043501,-1496.0,0.00011,2]
[334892223,1723629043512,-701.666667,0.00011,2]
[334892228,1723629043552,-602.56499997,0.00011,2]
[334892230,1723629043563,-513.18500005,0.00011,2]
[334892323,1723629044579,-18061.95179293,0.00011,2]
[334892325,1723629044590,-2815.26216506,0.00011,2]
[334892327,1723629044602,-5178.63908636,0.00011,2]
[334892329,1723629044614,-5000.00000002,0.00011,2]
[334892541,1723629046700,-2428.63048261,0.00011,2]
[334895666,1723629467275,150.0,9.074e-05,2]
[334895667,1723629467297,150.0,9.074e-05,2]
[334895668,1723629467321,150.0,9.074e-05,2]
[334895669,1723629467342,150.0,9.074e-05,2]
[334895670,1723629467364,88.39,9.074e-05,2]
[334895671,1723629695450,150.0,9.499e-05,2]
[334895672,1723629695472,150.0,9.499e-05,2]
[334895673,1723629695496,150.0,9.499e-05,2]
[334895674,1723629695518,150.0,9.499e-05,2]
[334895675,1723629695541,150.0,9.499e-05,2]
[334895676,1723629695563,150.0,9.499e-05,2]
[334895677,1723629695584,150.0,9.499e-05,2]
[334895678,1723629695605,150.0,9.499e-05,2]
[334895679,1723629695627,150.0,9.499e-05,2]
[334895680,1723629695648,150.0,9.499e-05,2]
[334895681,1723629695669,150.0,9.499e-05,2]
[334895682,1723629695690,150.0,9.499e-05,2]
[334895683,1723629695710,150.0,9.499e-05,2]
[334895684,1723629695731,150.0,9.499e-05,2]
[334895685,1723629695751,150.0,9.499e-05,2]
[334895686,1723629695771,150.0,9.499e-05,2]
[334895687,1723629695792,274.22772408,9.499e-05,2]
[334895688,1723629695813,17054.94915932,9.499e-05,2]
[334895690,1723629956589,150.0,8.219e-05,2]
[334895691,1723629956612,150.0,8.219e-05,2]
[334895692,1723629956637,150.0,8.219e-05,2]
[334895693,1723629956661,150.0,8.219e-05,2]
[334895694,1723629956684,121.86,8.219e-05,2]
[334895696,1723630043312,324.10583867,0.00025,63]
[334895698,1723630134919,150.0,9.499e-05,2]
[334895699,1723630134939,150.0,9.499e-05,2]
[334895700,1723630134962,150.0,9.499e-05,2]
[334895701,1723630134985,150.0,9.499e-05,2]
[334895702,1723630135009,150.0,9.499e-05,2]
[334895703,1723630135031,150.0,9.499e-05,2]
[334895704,1723630135054,139.19158514,9.499e-05,2]
[334895714,1723630232372,-194.79,9.84e-05,2]
[334895715,1723630232382,-200.0,9.85e-05,2]
[334895716,1723630232392,-175.57,9.873e-05,2]
[334895717,1723630232402,-1.70978822,9.966e-05,2]
[334895718,1723630232413,-876.88425,9.966e-05,2]
[334895729,1723630237712,-200.0,9.85e-05,2]
[334895730,1723630237722,-633.52596178,9.966e-05,2]
[334895731,1723630237731,-724.2,9.975e-05,2]
[334895732,1723630237741,-200.0,0.00010035,2]
[334895733,1723630237751,-228.15,0.00010076,2]
[334895734,1723630237760,-1074.43,0.0001009,2]
[334895736,1723630237769,-300.0,0.00010135,2]
[334895738,1723630237779,-300.0,0.00010135,2]
[334895740,1723630237788,-6080.36685151,0.00010136,2]
[334895741,1723630237799,-320.05857309,0.00010136,2]
[334895764,1723630238302,-530.41856505,0.00010136,2]
[334895787,1723630242154,-610.33,0.00010136,2]
[334895799,1723630243118,-370.5881043,0.00010136,2]
[334895800,1723630243133,-1540.23583073,0.00010136,2]